Cogmind - Beta 14 @@@ ROGUE MODE // 2024.09.20 @ 15:43:02 Player: Minty Result: Destroyed by G-47 Trooper with Particle Gun Performance ------------- Evolutions (2) 1000 Regions Visited (3) 600 Robots Destroyed (109) 545 Value Destroyed (2745) 2745 Prototype IDs (5) 100 Alien Tech Used (0) 0 Bonus (713) 713 TOTAL SCORE: 5703 Bonus ------- High Alert Combat Kills 713 Cogmind --------- Core Integrity 0/550 Matter 2/300 Energy 100/100 System Corruption 1% Temperature Cool (9) Movement Core (350) Ox6 Location -8/Materials Parts ------- > --- POWER (1) -------- (None) > --- PROPULSION (3) --- Wheel > --- UTILITY (4) ------ Medium Storage Unit > --- WEAPON (3) ------- Assault Cannon Assault Cannon Mini Grenade Launcher > --- INVENTORY (10) --- Cooled Ion Engine Cooling System Cooling System Medium Storage Unit Weapon Shielding High-powered Tractor Beam Rocket Launcher Mini Grenade Launcher Mini Grenade Launcher Mini Grenade Launcher Peak State ------------ > --- POWER ------------ (None) > --- PROPULSION ------- Improved Aluminum Leg Wheel > --- UTILITY ---------- Medium Storage Unit Heavy Armor Plating Reactive Plating > --- WEAPON ----------- Assault Cannon Assault Cannon Mini Grenade Launcher > --- INVENTORY -------- Cooled Ion Engine Cooling System Cooling System Medium Storage Unit Weapon Shielding Advanced Beam Cannon Rocket Launcher Mini Grenade Launcher Mini Grenade Launcher Mini Grenade Launcher [Rating: 23] Favorites ----------- Power Light Ion Engine Engine Light Ion Engine Propulsion Wheel Treads Light Treads Leg Improved Aluminum Leg Wheel Wheel Utility Medium Storage Unit Device Seismic Detector Storage Medium Storage Unit Processor Targeting Computer Hackware Hacking Suite Protection Reactive Plating Weapon Mini Grenade Launcher Energy Gun Medium Laser Energy Cannon Advanced Beam Cannon Ballistic Cannon Assault Cannon Launcher Mini Grenade Launcher Impact Weapon Maul Build | -11 -10 -9 -8 ------- Run | Yrd Mat Mat Mat Slots Evolved 4 | . . 2 2 Power . | . . . . Propulsion 1 | . . . 1 Utility 2 | . . 1 1 Weapon 1 | . . 1 . Parts Attached 61 | . 19 21 21 Power 8 | . 1 7 . Engine 8 | . 1 7 . Core . | . . . . Reactor . | . . . . Propulsion 14 | . 6 4 4 Treads 2 | . . 2 . Leg 2 | . . . 2 Wheel 10 | . 6 2 2 Hover . | . . . . Flight . | . . . . Utility 14 | . 2 3 9 Device 3 | . . 1 2 Storage 3 | . 1 1 1 Processor 4 | . 1 1 2 Hackware 1 | . . . 1 Protection 3 | . . . 3 Artifact . | . . . . Weapon 25 | . 10 7 8 Energy Gun 6 | . 5 1 . Energy Cannon 1 | . . . 1 Ballistic Gun . | . . . . Ballistic Cannon 2 | . . . 2 Launcher 15 | . 5 5 5 Special Weapon . | . . . . Impact Weapon 1 | . . 1 . Slashing Weapon . | . . . . Piercing Weapon . | . . . . Special Melee Weapon . | . . . . Unidentified Prototypes 2 | . . 1 1 Parts Lost 24 | . 5 3 16 Power 2 | . . 1 1 Propulsion 8 | . 2 1 5 Utility 6 | . . . 6 Weapon 8 | . 3 1 4 Highest Loss Streak 10 | . 1 2 10 To Critical Strikes . | . . . . Average Slot Usage (%) 84 | . 89 95 58 Engine 9 | . 14 10 2 Treads 8 | . . 16 3 Leg 1 | . . . 5 Wheel 9 | . 25 4 2 Device 6 | . . 10 4 Storage 11 | . 14 11 9 Processor 10 | . 13 11 6 Energy Gun 10 | . 19 10 . Launcher 10 | . . 15 12 Impact Weapon 1 | . . 3 . Peak Build Rating 23 | . 8 17 23 Average Rating 12 | . 6 13 14 On Entrance 9 | 6 6 7 17 Naked Turns . | . . . . Heaviest Build 41 | 14 20 23 41 Greatest Support 43 | 20 20 43 43 Greatest Overweight (x) 6 | . 1 1 6 Average Overweight (x) . | . . . 1 Largest Inventory Capacity 10 | . 10 10 10 Average Capacity 9 | . 9 10 10 Most Carried 10 | . 10 10 10 Average Carried 9 | . 9 9 9 Final Capacity 10 | 8 10 10 10 Final Carried 10 | 6 8 10 10 Class Distribution -------------------- 58% | Mutant 20% | Gunner 20% | Bomber Dominant Class ---------------- Mutant | -10/Materials Gunner | -9/Materials Mutant | -8/Materials Resources | -11 -10 -9 -8 ----------- Run | Yrd Mat Mat Mat Matter Collected 1451 | 187 421 359 484 Remotely 9 | . . . 9 Salvage Created 2502 | . 665 1196 641 Parts 162 | . 49 76 37 Haulers Intercepted 5 | . 1 4 . Recyclers Shooed 4 | . 1 1 2 Parts Field Recycled . | . . . . Retrieved Matter . | . . . . Parts Self-Destructed . | . . . . Prevented . | . . . . Kills | -11 -10 -9 -8 ------- Run | Yrd Mat Mat Mat Combat Hostiles Destroyed 71 | . 17 29 25 Guns 18 | . 9 9 . Cannons 4 | . . . 4 AOE 48 | . 7 20 21 Classes Destroyed 12 | . 7 4 1 Worker 8 | . 4 3 1 Builder 10 | . 2 4 4 Tunneler 1 | . . 1 . Hauler 5 | . 1 4 . Recycler 4 | . . 3 1 Mechanic 3 | . . 1 2 Operator 3 | . 1 1 1 Watcher 4 | . 2 1 1 Swarmer 25 | . 6 12 7 Grunt 36 | . 11 11 14 Duelist 1 | . . . 1 Sentry 9 | . . 6 3 Best Kill Streak 11 | . 10 11 8 Combat Bots Only 7 | . 7 7 7 Max Kills in Single Turn 6 | . 2 6 3 Gunslinging 1 | . . 1 . Exploded 6 | . 2 6 2 Melee . | . . . . Uniques/NPCs Destroyed . | . . . . Combat | -11 -10 -9 -8 -------- Run | Yrd Mat Mat Mat Hostile Shots Fired 302 | . 82 58 162 Missed 99 | . 22 26 51 Damage Taken 3441 | . 731 563 2147 Core 872 | . 232 88 552 Absorbed by Shields . | . . . . Ignored by Resistances 162 | . . . 162 Core Remaining (%) 61 | 100 7 78 . Volleys Fired 175 | . 72 54 49 Largest 3 | . 2 3 3 Hottest 136 | . 100 136 118 Shots Fired 314 | . 111 124 79 Gun 190 | . 98 92 . Cannon 32 | . . . 32 Launcher 92 | . 13 32 47 Special . | . . . . Kinetic 15 | . . . 15 Thermal 174 | . 96 61 17 Explosive 92 | . 13 32 47 Electromagnetic 33 | . 2 31 . Robot Hit Streak 12 | . 12 10 8 Robot Miss Streak 3 | . 2 3 2 Penetration Max . | . . . . Secondary Targets 1 | . . 1 . Max Gunslinging Chain 1 | . . 1 . Shots Hit Robots 205 | . 81 73 51 Core Hits 192 | . 44 76 72 Critical Kills . | . . . . Critical Parts Destroyed . | . . . . Critical Strikes 7 | . 5 2 . Burn 7 | . 5 2 . Melee Attacks 29 | . . 29 . Impact 29 | . . 29 . Slashing . | . . . . Piercing . | . . . . Sneak Attacks 3 | . . 3 . Combat Hostiles . | . . . . Follow-up Attacks . | . . . . Damage Inflicted 8368 | . 1495 3133 3740 Guns 1585 | . 902 683 . Cannons 537 | . . . 537 Explosions 5952 | . 593 2178 3181 Melee 242 | . . 242 . Ramming 52 | . . 30 22 Kinetic 268 | . . . 268 Thermal 1930 | . 886 548 496 Explosive 5583 | . 593 2078 2912 Electromagnetic 293 | . 16 235 42 Impact 242 | . . 242 . Slashing . | . . . . Piercing . | . . . . Highest Corruption 2 | . 2 . 1 Average Corruption 1 | . 2 . 1 Corruption Purged . | . . . . Corruption Blocked . | . . . . Effects 14 | . 9 . 5 Matter Fused 9 | . 6 . 3 Data Loss (minor) 2 | . . . 2 Misfires 1 | . 1 . . Alerts 2 | . 2 . . Overload Shots . | . . . . Overflow Damage 462 | . 46 221 195 Projectiles 7 | . . . 7 Explosions 329 | . 46 95 188 Melee 126 | . . 126 . Knockbacks 1 | . . 1 . Impact 1 | . . 1 . Kinetic . | . . . . Secondary . | . . . . Self-Inflicted Damage 632 | . 60 154 418 Shots 17 | . 2 4 11 Rammed 21 | . . 11 10 Targets Rammed 27 | . . 11 16 Kicked 6 | . . . 6 Crushed . | . . . . Highest Temperature 480 | . 480 319 183 Average Temperature 95 | . 121 81 64 Received Heat Transfer 1068 | . 342 96 630 Effects 6 | . 6 . . Shutdowns 2 | . 2 . . Energy Bleed 1 | . 1 . . Matter Decay 2 | . 2 . . Damage (major) 1 | . 1 . . Siege Activations . | . . . . Robots Corrupted 1 | . . 1 . Combat Hostiles . | . . . . Parts Fried 4 | . . 4 . Impact Corruptions 4 | . . 4 . Robots Melted 1 | . 1 . . Combat Hostiles 1 | . 1 . . Parts Melted 8 | . 5 2 1 Heat Transferred 4895 | . 2915 1349 631 Parts Sabotaged . | . . . . Parts Stolen . | . . . . Parts Stripped . | . . . . Power Chain Reactions 3 | . . 3 . Alert | -11 -10 -9 -8 ------- Run | Yrd Mat Mat Mat Peak Influence 1221 | . 553 1091 1221 Initial 452 | . . 213 452 Average 606 | . 320 668 802 Maximum Alert Level 4 | . 2 3 4 Low Security (%) 8 | . 32 . . Level 1 12 | . 19 14 . Level 2 46 | . 48 50 36 Level 3 29 | . . 34 51 Level 4 3 | . . . 12 Level 5 . | . . . . High Security . | . . . . Max Security . | . . . . Squads Dispatched 15 | . 4 4 7 Investigation 4 | . 2 1 1 Extermination . | . . . . Reinforcement 7 | . 2 2 3 Assault 3 | . . 1 2 Garrison 1 | . . . 1 Intercept . | . . . . Searches Triggered . | . . . . Construction Impeded 1 | . . . 1 Haulers Reinforced . | . . . . Active Scanning Responses . | . . . . Cargo Convoy Interrupts . | . . . . Stealth | -11 -10 -9 -8 --------- Run | Yrd Mat Mat Mat Distress Signals 8 | . 1 3 4 Communications Jammed . | . . . . Distress Signals . | . . . . Times Spotted 101 | . 26 39 36 Peak Tracking Total 7 | . 5 6 7 Tactical Retreats 6 | . 3 1 2 Traps | -11 -10 -9 -8 ------- Run | Yrd Mat Mat Mat Traps Triggered 2 | . 2 . . Indirectly . | . . . . Trap Hack Attempts . | . . . . Triggered . | . . . . Disarmed 4 | . 4 . . Reprogrammed . | . . . . Reused . | . . . . Traps Extracted . | . . . . Installed . | . . . . Triggered . | . . . . Machines | -11 -10 -9 -8 ---------- Run | Yrd Mat Mat Mat Machines Disabled 15 | . 2 6 7 Max in Single Turn 1 | . 1 1 1 Garrison Access 1 | . . . 1 Machines Repaired . | . . . . Machines Dismantled . | . . . . Machines Sabotaged 1 | . . 1 . Overloaded Fab Kills . | . . . . Hacking | -11 -10 -9 -8 --------- Run | Yrd Mat Mat Mat Machines Accessed 17 | . 7 9 1 Terminals 13 | . 5 7 1 Fabricators . | . . . . Repair Stations 1 | . . 1 . Recycling Units 3 | . 2 1 . Scanalyzers . | . . . . Garrison Access . | . . . . Total Hacks 80 | . 30 44 6 Successful 46 | . 15 28 3 Failed 33 | . 14 16 3 Catastrophic 1 | . . . 1 Database Lockouts 1 | . 1 . . Manual 46 | . 23 17 6 Terminals 65 | . 25 34 6 Fabricators . | . . . . Repair Stations 4 | . . 4 . Recycling Units 11 | . 5 6 . Scanalyzers . | . . . . Garrison Access . | . . . . Terminal Hacks 21 | . 5 14 2 Record 1 | . . 1 . Robot Analysis 2 | . 1 1 . Prototype ID Bank 2 | . . 2 . Level Access Points 1 | . . 1 . Branch Access Points 3 | . 1 1 1 Emergency Access Points 1 | . . 1 . Terminal Index 2 | . 1 1 . Alert Level 4 | . . 3 1 Locate Traps 2 | . 1 1 . Disarm Traps 1 | . 1 . . Patrol Status 1 | . . 1 . Zone Layout 1 | . . 1 . Fabricator Hacks . | . . . . Repair Station Hacks 2 | . . 2 . Scan Component 1 | . . 1 . Refit 1 | . . 1 . Recycling Unit Hacks 3 | . 2 1 . Report Inventory 3 | . 2 1 . Scanalyzer . | . . . . Garrison Access Hacks . | . . . . Unauthorized Hacks 20 | . 8 11 1 Terminals 19 | . 7 11 1 Assimilate 1 | . . 1 . Botnet 7 | . 2 4 1 Operators 1 | . 1 . . Skim 9 | . 4 5 . Sabotage 1 | . . 1 . Fabricators . | . . . . Repair Stations . | . . . . Recycling Units 1 | . 1 . . Tunnel 1 | . 1 . . Scanalyzers . | . . . . Garrison Access . | . . . . Data Cores Recovered . | . . . . Used . | . . . . Hacking Detections 16 | . 6 9 1 Full Trace Events 3 | . 1 1 1 Feedback Events . | . . . . Feedback Blocked . | . . . . Robot Schematics Acquired . | . . . . Robots Built . | . . . . Authchips . | . . . . Time . | . . . . Total Robot Build Rating . | . . . . Part Schematics Acquired . | . . . . Parts Built . | . . . . Authchips . | . . . . Time . | . . . . Total Part Build Rating . | . . . . Parts Repaired . | . . . . Time . | . . . . Parts Recycled . | . . . . Recycled Matter . | . . . . Retrieved Matter . | . . . . Retrieved Components . | . . . . Parts Scanalyzed . | . . . . Part Schematics Acquired . | . . . . Parts Damaged . | . . . . Bothacking | -11 -10 -9 -8 ------------ Run | Yrd Mat Mat Mat Used RIF Installer . | . . . . Robots Hacked . | . . . . Non-combat . | . . . . Combat . | . . . . Robot Hacks Applied . | . . . . Relay Couplers Released 3 | . . . 3 Machine Destruction 3 | . . . 3 Fabnet Peak Effective % . | . . . . Robots Rewired . | . . . . Allies Hacked . | . . . . Hacks Repelled . | . . . . Allies | -11 -10 -9 -8 -------- Run | Yrd Mat Mat Mat Total Allies . | . . . . Largest Group . | . . . . Highest-Rated Group . | . . . . Highest-Rated Ally . | . . . . Total Orders . | . . . . Ally Attacks . | . . . . Total Damage . | . . . . Kills . | . . . . Allies Corrupted . | . . . . Allies Melted . | . . . . Intel | -11 -10 -9 -8 ------- Run | Yrd Mat Mat Mat Robot Analysis Total 2 | . 1 1 . Derelict Logs Recovered . | . . . . Drone Launches . | . . . . Drone Recoveries . | . . . . Exploration | -11 -10 -9 -8 ------------- Run | Yrd Mat Mat Mat Turns Passed 2711 | . 737 1309 665 Spaces Moved 1340 | 1 529 529 281 Core 68 | . . . 68 Treads 382 | . . 313 69 Legs 90 | 1 19 . 70 Wheels 800 | . 510 216 74 Hover . | . . . . Flight . | . . . . Fastest Speed 80 | 120 80 80 110 Average Speed 117 | 120 82 130 159 Slowest Speed 350 | 120 120 160 350 Overloaded Moves . | . . . . Propulsion Burnouts . | . . . . Robots Hopped . | . . . . Cave-ins Triggered 1 | . . . 1 Exploration Rate (%) 45 | 1 76 66 37 Regions Visited 3 Branch Regions . Pre-discovered Areas 2 | . 1 1 . Known Exits Taken 1 | . . 1 . Unknown Exits Taken 2 | 1 1 . . Scrap Searched . | . . . . Spaces Dug 18 | . . 18 . Terrain Destroyed 515 | . 82 236 197 Melee 18 | . . 18 . Projectile 1 | . . . 1 AOE 496 | . 82 218 196 Terrain Rammed . | . . . . Walls Destroyed . | . . . . Machines Disabled . | . . . . Actions | -11 -10 -9 -8 --------- Run | Yrd Mat Mat Mat Total 2103 | . 717 980 406 Wait 426 | . 80 320 26 Move 1337 | . 528 528 281 Hop . | . . . . Pick Up 20 | . 10 6 4 Fast Attach 24 | . 5 6 13 Attach 13 | . 5 1 7 Detach 10 | . 2 1 7 Swap 24 | . 9 14 1 Drop 18 | . 6 10 2 Fire 175 | . 72 54 49 Melee 29 | . . 29 . Ram 8 | . . . 8 Kick 6 | . . . 6 Crush 13 | . . 11 2 Escape Stasis . | . . . . Rewire . | . . . . Trap . | . . . . Miscellaneous . | . . . . Route ------- -11/Scrapyard -10/Materials (discovered 3 exits: *Mat x2 / Min) -9/Materials (discovered 5 exits: *Mat x3 / *Min x2) -8/Materials History --------- Turn | Location | Event 1 | -11/Scrapyard | Discovered new exit (range 0) 1 | -11/Scrapyard | Entered Materials 262 | -10/Materials | Core integrity fell below 50% 332 | -10/Materials | Build established: Mutant 333 | -10/Materials | Destroyed 7 combat bots 355 | -10/Materials | Identified exit to Mines 541 | -10/Materials | Discovered new exit (range 13) 544 | -10/Materials | Central database locked down 623 | -10/Materials | Core integrity fell below 20% 672 | -10/Materials | Discovered new exit (range 3) 738 | -10/Materials | Entered another Materials area 738 | -9/Materials | Evolved 2 slots: Utility x1, Weapon x1 823 | -9/Materials | Discovered new exit (range 16) 911 | -9/Materials | Identified exit to Materials 945 | -9/Materials | Identified exit to Mines 1025 | -9/Materials | Destroyed 7 combat bots 1084 | -9/Materials | Build established: Gunner 1397 | -9/Materials | Build established: Mutant 1758 | -9/Materials | Learned location of Zion (-6) 1762 | -9/Materials | Destroyed 7 combat bots 1837 | -9/Materials | Learned Storage security intel 1906 | -9/Materials | Learned Storage trap positions 1938 | -9/Materials | First assault squad dispatched 2004 | -9/Materials | Build established: Bomber 2015 | -9/Materials | Learned Storage emergency access door positions 2047 | -9/Materials | Entered another Materials area 2047 | -8/Materials | Evolved 2 slots: Propulsion x1, Utility x1 2279 | -8/Materials | Core integrity fell below 50% 2280 | -8/Materials | Crushed by falling debris 2311 | -8/Materials | Lost 10 parts (1p3n3u3w) 2447 | -8/Materials | First assault squad dispatched 2454 | -8/Materials | Garrison activated, responded to threat 2498 | -8/Materials | Build established: Mutant 2510 | -8/Materials | Destroyed 7 combat bots 2607 | -8/Materials | Core integrity fell below 20% 2712 | -8/Materials | Destroyed by G-47 Trooper with Particle Gun Last Messages --------------- area. 02633_ U-05 Engineer destroyed. 02633_ Penetrated by Slug. 02635_ Hvy. Armor Plating destroyed. 02639_ S-10 Pest destroyed. 02639_ Destroyed Lgt. Ion Engine. 02641_ The unstable cave ceiling collapses. 02644_ Electrolysis Chamber disabled. 02646_ Neutrino Reactor explodes. 02646_ S-10 Pest destroyed. 02648_ Penetrated by Slug. 02648_ Reactive Plating destroyed. 02650_ The unstable cave ceiling collapses. 02654_ Acquired 4 matter. 02668_ Dropped Adv. Beam Cannon. 02668_ Acquired Hpw. Tractor Beam. 02691_ Kicked T-07 Excavator. 02704_ Kicked G-47 Trooper out of the way. 02708_ Knocked back. 02710_ Imp. Aluminum Leg destroyed. Map ----- +----------------------------------------------------+ | ???????????#############???# #? | | ?"""?????????# #???# #? | | ?"""?????????#/ ! #???# #? | | ?"""?????????# #???# #? | | ???????????????""" """ #???# #? | | ?????????????? """ """ #???### ###? | | ?????????????+ " """ #?????# #??? | | ?????????????# ####### #??? | | ?????????????# + #??? | | ????????? #### #### #??? | | ??????? %| #??? | | ??????? #??? | | ???????? " #########? | | ????????? # ?# | | ??????##### # % " # """ # | | ??????? = # H # """ # | | ???????? # """ # | | ????????""" % + # | | ????????""" # """ # | | ????????""" * !% " """ # | | ??????# [ # """ # | | ??????# # ;# # | | ?????????? = / # ;;# +######? | | ???????????#???#" + g % #????? | | ????????? # g ]#????? | | ????? # @ #????? | | ??????#+####+#######! ] #????? | | ???????????????????# #????? | | ???????????????????# """ """ #????? | | ???????????????????# """ """ #????? | | ???????????????????# """ """ #????? | | ???????????????????###########????? | | ??????????????????????????????????? | | | | | | | | | | | | | | | | | | | | | | | | | | | | | | | | | | | +----------------------------------------------------+ Best States ------------- Heat Dissipation 31 Energy Generation 14 Energy Capacity 280 Matter Stores 300 Matter Capacity 350 Sight Range 16 Terrain Scan Density 10 Armor Coverage 750 Resistance: KI 20 Evasion (%) 55 Targeting Accuracy 6 Target Analysis 5 Recoil Reduction 2 Offensive Hacking 10 Item Schematics ----------------- None Robot Schematics ------------------ None Fabricated ------------ Nothing Alien Tech Used ----------------- None Achievements -------------- None Challenges ------------ None Game ------ Seed AntimatterPitchforkConstruct Manual? 0 Play Time 00:24:07 Cumulative 941.7 hours Start 2024.09.20 @ 15:23:10 End 2024.09.20 @ 15:43:02 Sessions 1 Manual Loads 0 Difficulty Rogue Special Mode None Game No. 1146 Rogue 866 Adventurer 124 Explorer 156 Win Type - Total 41 Types 28/0/8/3/1/0/0/1/0 Lore% 82 Gallery% 90 Achievement% 78 Wizard Run 0 Options --------- Layout 0 ASCII 0 Keyboard 1 Movement Numpad Keybinds 0 Fullscreen 2 Font 18/X11 Map View 76x50 Zoom Use 0% Tactical HUD 1 Map Filters NONE Filters NONE Steam 1 RUN: 8f8a7072-8cdd-4c6a-be24-4aee3b69bca3